[Event "Rapide Futuroscope"]
[Site "Futuroscope, France"]
[Date "2019.12.01"]
[Round "4.3"]
[White "SOCHACKI, Christophe"]
[Black "Leriche, Luc"]
[Result "1-0"]
[TimeControl "15' + 3''"]
[WhiteTitle "IM"]
[WhiteFideId "662569"]
[WhiteElo "2492"]
[BlackElo "2167"]

1. b4 {[%clk 00:14:50]} {[%emt 00:00:16]} d5 {[%clk 00:14:40]} {[%emt
00:00:26]} 2. Bb2 {[%clk 00:14:49]} {[%emt 00:00:02]} c6 {[%clk 00:14:29]}
{[%emt 00:00:15]} 3. Nf3 {[%clk 00:14:45]} {[%emt 00:00:07]} Bf5 {[%clk
00:14:10]} {[%emt 00:00:22]} 4. e3 {[%clk 00:14:30]} {[%emt 00:00:18]} e6
{[%clk 00:14:12]} {[%emt 00:00:02]} 5. c4 {[%clk 00:14:04]} {[%emt 00:00:28]}
Nf6 {[%clk 00:13:32]} {[%emt 00:00:43]} 6. Qb3 {[%clk 00:13:52]} {[%emt
00:00:16]} Bd6 {[%clk 00:12:52]} {[%emt 00:00:42]} 7. Nh4 {[%clk 00:12:09]}
{[%emt 00:01:46]} Bg4 {[%clk 00:12:41]} {[%emt 00:00:14]} 8. h3 {[%clk
00:12:09]} {[%emt 00:00:02]} Bh5 {[%clk 00:12:43]} 9. g4 {[%clk 00:11:49]}
{[%emt 00:00:25]} Bg6 {[%clk 00:07:28]} {[%emt 00:05:18]} 10. Nxg6 {[%clk
00:11:47]} {[%emt 00:00:05]} hxg6 {[%clk 00:07:30]} {[%emt 00:00:02]} 11. Bg2
{[%clk 00:11:48]} {[%emt 00:00:02]} g5 {[%clk 00:06:58]} {[%emt 00:00:35]} 12.
d4 {[%clk 00:11:21]} {[%emt 00:00:30]} Nbd7 {[%clk 00:06:35]} {[%emt 00:00:26]}
13. Nd2 {[%clk 00:11:13]} {[%emt 00:00:11]} Qe7 {[%clk 00:05:48]} {[%emt
00:00:50]} 14. Bc3 {[%clk 00:09:54]} {[%emt 00:01:22]} Rd8 {[%clk 00:04:51]}
{[%emt 00:01:00]} 15. O-O-O {[%clk 00:09:06]} {[%emt 00:00:52]} dxc4 {[%clk
00:03:43]} {[%emt 00:01:11]} 16. Nxc4 {[%clk 00:09:03]} {[%emt 00:00:05]} Nd5
{[%clk 00:03:39]} {[%emt 00:00:08]} 17. a3 {[%clk 00:06:27]} {[%emt 00:02:40]}
Nxc3 {[%clk 00:03:24]} {[%emt 00:00:18]} 18. Qxc3 {[%clk 00:06:29]} {[%emt
00:00:02]} Nb6 {[%clk 00:03:25]} {[%emt 00:00:01]} 19. Nxd6+ {[%clk 00:06:05]}
{[%emt 00:00:27]} Qxd6 {[%clk 00:03:16]} {[%emt 00:00:12]} 20. Qc5 {[%clk
00:06:02]} {[%emt 00:00:05]} Qxc5+ {[%clk 00:01:35]} {[%emt 00:01:45]} 21. bxc5
{[%clk 00:05:30]} {[%emt 00:00:35]} Nd5 {[%clk 00:01:14]} {[%emt 00:00:23]} 22.
Kc2 {[%clk 00:04:48]} {[%emt 00:00:45]} Kd7 {[%clk 00:00:39]} {[%emt 00:00:39]}
23. Rb1 {[%clk 00:04:49]} {[%emt 00:00:02]} Kc7 {[%clk 00:00:40]} {[%emt
00:00:02]} 24. Rb3 {[%clk 00:04:51]} {[%emt 00:00:01]} Rb8 {[%clk 00:00:22]}
{[%emt 00:00:21]} 25. Rhb1 {[%clk 00:04:41]} {[%emt 00:00:12]} Rhc8 {[%clk
00:00:18]} {[%emt 00:00:07]} 26. Kd3 {[%clk 00:04:23]} {[%emt 00:00:22]} b5
{[%clk 00:00:15]} {[%emt 00:00:06]} 27. cxb6+ {[%clk 00:03:58]} {[%emt
00:00:28]} Rxb6 {[%clk 00:00:16]} {[%emt 00:00:02]} 28. Rxb6 {[%clk 00:03:13]}
{[%emt 00:00:48]} axb6 {[%clk 00:00:18]} 29. Rb3 {[%clk 00:03:09]} {[%emt
00:00:07]} Ra8 {[%clk 00:00:19]} {[%emt 00:00:02]} 30. Ke4 {[%clk 00:02:55]}
{[%emt 00:00:16]} Ra4 {[%clk 00:00:15]} {[%emt 00:00:08]} 31. Bf1 {[%clk
00:02:54]} {[%emt 00:00:04]} Ra8 {[%clk 00:00:10]} {[%emt 00:00:08]} 32. Bc4
{[%clk 00:02:43]} {[%emt 00:00:14]} Rh8 {[%clk 00:00:09]} {[%emt 00:00:04]} 33.
Bf1 {[%clk 00:02:30]} {[%emt 00:00:15]} Ra8 {[%clk 00:00:10]} {[%emt 00:00:02]}
34. Kf3 {[%clk 00:02:04]} {[%emt 00:00:29]} b5 {[%clk 00:00:12]} {[%emt
00:00:01]} 35. Kg3 {[%clk 00:01:32]} {[%emt 00:00:35]} Ra4 {[%clk 00:00:13]}
{[%emt 00:00:02]} 36. h4 {[%clk 00:01:33]} {[%emt 00:00:03]} f6 {[%clk
00:00:09]} {[%emt 00:00:07]} 37. hxg5 {[%clk 00:01:17]} {[%emt 00:00:19]} fxg5
{[%clk 00:00:12]} 38. Bd3 {[%clk 00:01:18]} Ra8 {[%clk 00:00:07]} {[%emt
00:00:08]} 39. Bg6 {[%clk 00:01:17]} {[%emt 00:00:04]} Kd6 {[%clk 00:00:07]}
{[%emt 00:00:04]} 40. f4 {[%clk 00:00:54]} {[%emt 00:00:25]} gxf4+ {[%clk
00:00:06]} {[%emt 00:00:03]} 41. exf4 {[%clk 00:00:56]} Ra4 {[%clk 00:00:06]}
{[%emt 00:00:03]} 42. Rd3 {[%clk 00:00:59]} Nb6 {[%clk 00:00:06]} {[%emt
00:00:04]} 43. Kh4 {[%clk 00:00:35]} {[%emt 00:00:26]} Nc4 {[%clk 00:00:08]} 44.
Kg5 {[%clk 00:00:36]} {[%emt 00:00:02]} Nxa3 {[%clk 00:00:06]} {[%emt
00:00:05]} 45. Bf7 {[%clk 00:00:33]} {[%emt 00:00:06]} Nc2 {[%clk 00:00:07]}
{[%emt 00:00:02]} 46. Kg6 {[%clk 00:00:21]} {[%emt 00:00:15]} Rxd4 {[%clk
00:00:07]} {[%emt 00:00:03]} 47. Rc3 {[%clk 00:00:23]} Nb4 {[%clk 00:00:05]}
{[%emt 00:00:06]} 48. Re3 {[%clk 00:00:14]} {[%emt 00:00:11]} Rxf4 {[%clk
00:00:05]} {[%emt 00:00:03]} 49. Rxe6+ {[%clk 00:00:16]} {[%emt 00:00:01]} Kd7
{[%clk 00:00:07]} {[%emt 00:00:01]} 50. g5 {[%clk 00:00:16]} {[%emt 00:00:03]}
Nd5 {[%clk 00:00:06]} {[%emt 00:00:04]} 51. Kxg7 {[%clk 00:00:17]} {[%emt
00:00:02]} Nc7 {[%clk 00:00:05]} {[%emt 00:00:04]} 52. Re2 {[%clk 00:00:10]}
{[%emt 00:00:10]} b4 {[%clk 00:00:06]} {[%emt 00:00:02]} 53. g6 {[%clk
00:00:12]} {[%emt 00:00:01]} Rg4 {[%clk 00:00:05]} {[%emt 00:00:04]} 54. Kf8
{[%clk 00:00:11]} {[%emt 00:00:03]} c5 {[%clk 00:00:05]} {[%emt 00:00:03]} 55.
g7 {[%clk 00:00:13]} {[%emt 00:00:01]} c4 {[%clk 00:00:04]} {[%emt 00:00:04]}
56. Bxc4 {[%clk 00:00:05]} {[%emt 00:00:10]} Rxc4 {[%clk 00:00:05]} {[%emt
00:00:02]} 57. Re7+ {[%clk 00:00:07]} Kd6 {[%clk 00:00:05]} {[%emt 00:00:03]}
58. g8=Q {[%clk 00:00:09]} {[%emt 00:00:01]} Rf4+ {[%clk 00:00:05]} {[%emt
00:00:02]} 59. Rf7 {[%clk 00:00:08]} {[%emt 00:00:04]} Ne6+ {[%clk 00:00:07]}
{[%emt 00:00:02]} 60. Ke8 {[%clk 00:00:10]} Nc7+ {[%clk 00:00:04]} {[%emt
00:00:06]} 61. Kd8 {[%clk 00:00:12]} {[%emt 00:00:01]} Ne6+ {[%emt 00:00:03]}
62. Kc8 {[%clk 00:00:13]} {[%emt 00:00:01]} Rc4+ {[%clk 00:00:06]} {[%emt
00:00:02]} 63. Kb8 {[%clk 00:00:14]} {[%emt 00:00:01]} b3 {[%clk 00:00:04]}
{[%emt 00:00:06]} 64. Qg3+ {[%clk 00:00:16]} {[%emt 00:00:01]} Kc5 {[%clk
00:00:05]} {[%emt 00:00:02]} 65. Qe5+ {[%clk 00:00:11]} {[%emt 00:00:08]} Kd5
{[%emt 00:00:06]} 1-0

[Event "Rapide Futuroscope"]
[Site "Futuroscope, France"]
[Date "2019.12.01"]
[Round "4.2"]
[White "Dieu, Bruno"]
[Black "EDOUARD, Romain"]
[Result "0-1"]
[TimeControl "15' + 3''"]
[BlackTitle "GM"]
[BlackFideId "633429"]
[WhiteElo "2223"]
[BlackElo "2655"]

1. Nc3 {[%clk 00:15:05]} {[%emt 00:00:01]} c5 {[%clk 00:14:54]} {[%emt
00:00:12]} 2. Nf3 {[%clk 00:15:06]} {[%emt 00:00:01]} g6 {[%clk 00:14:54]}
{[%emt 00:00:05]} 3. d4 {[%clk 00:15:03]} {[%emt 00:00:04]} cxd4 {[%clk
00:14:52]} {[%emt 00:00:06]} 4. Nxd4 {[%clk 00:15:04]} {[%emt 00:00:03]} Bg7
{[%clk 00:14:53]} 5. g3 {[%clk 00:15:02]} {[%emt 00:00:06]} Nc6 {[%clk
00:14:54]} 6. Nxc6 {[%clk 00:15:03]} {[%emt 00:00:01]} bxc6 {[%clk 00:14:49]}
{[%emt 00:00:08]} 7. Bg2 {[%clk 00:15:05]} d5 {[%clk 00:14:47]} {[%emt
00:00:05]} 8. O-O {[%clk 00:15:06]} {[%emt 00:00:02]} e6 {[%clk 00:14:49]}
{[%emt 00:00:02]} 9. Na4 {[%clk 00:15:08]} {[%emt 00:00:01]} Ne7 {[%clk
00:14:42]} {[%emt 00:00:10]} 10. c4 {[%clk 00:15:02]} {[%emt 00:00:09]} O-O
{[%clk 00:14:42]} {[%emt 00:00:02]} 11. Qc2 {[%clk 00:14:17]} {[%emt 00:00:48]}
Ba6 {[%clk 00:14:26]} {[%emt 00:00:20]} 12. cxd5 {[%clk 00:14:01]} {[%emt
00:00:19]} cxd5 {[%clk 00:14:27]} {[%emt 00:00:02]} 13. Be3 {[%clk 00:13:57]}
{[%emt 00:00:07]} Nf5 {[%clk 00:14:22]} {[%emt 00:00:09]} 14. Bc5 {[%clk
00:13:50]} {[%emt 00:00:10]} Rc8 {[%clk 00:14:21]} {[%emt 00:00:04]} 15. Qd2
{[%clk 00:12:55]} {[%emt 00:00:58]} Re8 {[%clk 00:14:22]} {[%emt 00:00:02]} 16.
Rac1 {[%clk 00:12:34]} {[%emt 00:00:24]} Bb5 {[%clk 00:14:13]} {[%emt
00:00:13]} 17. b3 {[%clk 00:11:37]} {[%emt 00:01:00]} Bh6 {[%clk 00:13:25]}
{[%emt 00:00:51]} 18. f4 {[%clk 00:11:21]} {[%emt 00:00:19]} d4 {[%clk
00:12:23]} {[%emt 00:01:05]} 19. Bxa7 {[%clk 00:10:16]} {[%emt 00:01:08]} e5
{[%clk 00:12:06]} {[%emt 00:00:20]} 20. Rxc8 {[%clk 00:10:05]} {[%emt
00:00:14]} Qxc8 {[%clk 00:12:07]} {[%emt 00:00:01]} 21. Rc1 {[%clk 00:10:07]}
{[%emt 00:00:01]} Qa6 {[%clk 00:10:53]} {[%emt 00:01:17]} 22. Rc7 {[%clk
00:09:16]} {[%emt 00:00:53]} exf4 {[%clk 00:10:53]} {[%emt 00:00:04]} 23. Bd5
{[%clk 00:08:21]} {[%emt 00:00:58]} Re7 {[%clk 00:10:36]} {[%emt 00:00:20]} 24.
Rxe7 {[%clk 00:07:02]} {[%emt 00:01:23]} Nxe7 {[%clk 00:10:37]} {[%emt
00:00:01]} 25. Qxd4 {[%clk 00:06:59]} {[%emt 00:00:06]} Nxd5 {[%clk 00:10:19]}
{[%emt 00:00:21]} 26. Qxd5 {[%clk 00:06:54]} {[%emt 00:00:08]} Qxa7+ {[%clk
00:10:19]} {[%emt 00:00:02]} 27. Kg2 {[%clk 00:06:53]} {[%emt 00:00:04]} Bxa4
{[%clk 00:10:07]} {[%emt 00:00:16]} 28. bxa4 {[%clk 00:06:53]} {[%emt
00:00:03]} Qxa4 {[%clk 00:10:05]} {[%emt 00:00:05]} 29. g4 {[%clk 00:06:19]}
{[%emt 00:00:37]} Bf8 {[%clk 00:09:59]} {[%emt 00:00:08]} 30. Kf3 {[%clk
00:06:07]} {[%emt 00:00:15]} Qa3+ {[%clk 00:09:36]} {[%emt 00:00:27]} 31. Kg2
{[%clk 00:05:50]} {[%emt 00:00:20]} Qe3 {[%clk 00:09:30]} {[%emt 00:00:09]} 32.
Qc4 {[%clk 00:05:52]} {[%emt 00:00:02]} Bc5 {[%clk 00:09:27]} {[%emt 00:00:06]}
33. a4 {[%clk 00:05:46]} {[%emt 00:00:09]} h6 {[%clk 00:09:08]} {[%emt
00:00:22]} 34. Qd3 {[%clk 00:05:32]} {[%emt 00:00:17]} Qg1+ {[%clk 00:09:03]}
{[%emt 00:00:07]} 35. Kh3 {[%clk 00:05:34]} {[%emt 00:00:01]} Qf1+ {[%clk
00:09:04]} {[%emt 00:00:02]} 36. Kh4 {[%clk 00:05:34]} {[%emt 00:00:03]} Bf2+
{[%clk 00:09:00]} {[%emt 00:00:07]} 0-1

[Event "Rapide Futuroscope"]
[Site "Futuroscope, France"]
[Date "2019.12.01"]
[Round "4.4"]
[White "Mariette, Lucas"]
[Black "SAADA, Julien"]
[Result "1/2-1/2"]
[TimeControl "15' + 3''"]
[BlackTitle "FM"]
[BlackFideId "625388"]
[WhiteElo "2290"]
[BlackElo "2316"]

1. e4 {[%clk 00:15:03]} {[%emt 00:00:01]} c6 {[%clk 00:15:05]} {[%emt
00:00:02]} 2. d4 {[%clk 00:15:05]} {[%emt 00:00:02]} d5 {[%clk 00:15:06]} 3.
Nc3 {[%clk 00:15:06]} {[%emt 00:00:02]} dxe4 {[%clk 00:15:03]} {[%emt
00:00:06]} 4. Nxe4 {[%clk 00:15:07]} {[%emt 00:00:01]} Bf5 {[%clk 00:15:05]}
{[%emt 00:00:03]} 5. Ng3 {[%clk 00:15:08]} Bg6 {[%clk 00:15:05]} {[%emt
00:00:03]} 6. h4 {[%clk 00:15:10]} {[%emt 00:00:01]} h6 {[%clk 00:15:04]}
{[%emt 00:00:04]} 7. Nf3 {[%clk 00:15:11]} {[%emt 00:00:01]} Nd7 {[%clk
00:14:56]} {[%emt 00:00:11]} 8. h5 {[%clk 00:15:05]} {[%emt 00:00:10]} Bh7
{[%clk 00:14:57]} {[%emt 00:00:02]} 9. Bd3 {[%clk 00:15:06]} Bxd3 {[%clk
00:14:57]} {[%emt 00:00:04]} 10. Qxd3 {[%clk 00:15:07]} {[%emt 00:00:03]} Ngf6
{[%clk 00:14:57]} {[%emt 00:00:02]} 11. Bd2 {[%clk 00:15:08]} {[%emt 00:00:02]}
e6 {[%clk 00:14:58]} {[%emt 00:00:03]} 12. O-O-O {[%clk 00:15:07]} {[%emt
00:00:04]} Be7 {[%clk 00:14:53]} {[%emt 00:00:10]} 13. Kb1 {[%clk 00:15:09]}
O-O {[%clk 00:14:45]} {[%emt 00:00:10]} 14. Ne4 {[%clk 00:15:11]} {[%emt
00:00:03]} Nxe4 {[%clk 00:13:51]} {[%emt 00:00:55]} 15. Qxe4 {[%clk 00:15:12]}
{[%emt 00:00:02]} Nf6 {[%clk 00:13:41]} {[%emt 00:00:13]} 16. Qe2 {[%clk
00:15:14]} {[%emt 00:00:02]} Qd5 {[%clk 00:13:22]} {[%emt 00:00:22]} 17. Be3
{[%clk 00:15:15]} {[%emt 00:00:02]} Ng4 {[%clk 00:11:29]} {[%emt 00:01:56]} 18.
Bc1 {[%clk 00:15:16]} {[%emt 00:00:02]} Rfd8 {[%clk 00:08:57]} {[%emt
00:02:36]} 19. Ne5 {[%clk 00:12:19]} {[%emt 00:02:59]} Nxe5 {[%clk 00:08:46]}
{[%emt 00:00:14]} 20. dxe5 {[%clk 00:12:20]} {[%emt 00:00:02]} Qb5 {[%clk
00:08:41]} {[%emt 00:00:08]} 21. Qxb5 {[%clk 00:12:05]} {[%emt 00:00:18]} cxb5
{[%clk 00:08:42]} {[%emt 00:00:02]} 22. Be3 {[%clk 00:12:07]} {[%emt 00:00:02]}
b6 {[%emt 00:01:07]} 1/2-1/2

[Event "Rapide Futuroscope"]
[Site "Futuroscope, France"]
[Date "2019.12.01"]
[Round "4.1"]
[White "Lagarde, Maxime"]
[Black "Hutois, Mickael"]
[Result "1-0"]
[TimeControl "15' + 3''"]
[WhiteElo "2657"]
[BlackElo "2277"]

1. c4 {[%clk 00:15:05]} {[%emt 00:41:48]} e5 {[%clk 00:15:05]} {[%emt
00:00:02]} 2. Nc3 {[%clk 00:15:07]} Nf6 {[%clk 00:15:05]} {[%emt 00:00:02]} 3.
Nf3 {[%clk 00:15:09]} {[%emt 00:00:02]} Nc6 {[%clk 00:15:06]} {[%emt 00:00:02]}
4. g3 {[%clk 00:14:58]} {[%emt 00:00:14]} d5 {[%clk 00:15:07]} {[%emt
00:00:02]} 5. cxd5 {[%clk 00:14:59]} {[%emt 00:00:02]} Nxd5 {[%clk 00:15:08]}
{[%emt 00:00:01]} 6. Bg2 {[%clk 00:15:01]} Nb6 {[%clk 00:15:05]} {[%emt
00:00:07]} 7. O-O {[%clk 00:14:59]} {[%emt 00:00:04]} Be6 {[%clk 00:15:05]}
{[%emt 00:00:03]} 8. d3 {[%clk 00:14:49]} {[%emt 00:00:13]} Be7 {[%clk
00:14:59]} {[%emt 00:00:10]} 9. Be3 {[%clk 00:14:47]} {[%emt 00:00:04]} f5
{[%clk 00:14:33]} {[%emt 00:00:30]} 10. a3 {[%clk 00:14:41]} {[%emt 00:00:09]}
a5 {[%clk 00:14:27]} {[%emt 00:00:09]} 11. Rc1 {[%clk 00:14:02]} {[%emt
00:00:42]} O-O {[%clk 00:13:28]} {[%emt 00:01:01]} 12. Na4 {[%clk 00:14:01]}
{[%emt 00:00:05]} Nd5 {[%clk 00:11:19]} {[%emt 00:02:12]} 13. Bc5 {[%clk
00:12:31]} {[%emt 00:01:33]} Bd6 {[%clk 00:09:40]} {[%emt 00:01:41]} 14. e4
{[%clk 00:11:51]} {[%emt 00:00:42]} Nb6 {[%clk 00:08:55]} {[%emt 00:00:49]} 15.
exf5 {[%clk 00:10:26]} {[%emt 00:01:29]} Bd5 {[%clk 00:05:37]} {[%emt
00:03:21]} 16. Bxb6 {[%clk 00:08:24]} {[%emt 00:02:05]} cxb6 {[%clk 00:05:33]}
{[%emt 00:00:07]} 17. Nc3 {[%clk 00:08:25]} {[%emt 00:00:02]} Bxf3 {[%clk
00:05:01]} {[%emt 00:00:35]} 18. Qxf3 {[%clk 00:08:13]} {[%emt 00:00:15]} Kh8
{[%clk 00:04:03]} {[%emt 00:01:00]} 19. Qh5 {[%clk 00:07:47]} {[%emt 00:00:26]}
Bc5 {[%clk 00:01:06]} {[%emt 00:03:04]} 20. Be4 {[%clk 00:07:34]} {[%emt
00:00:16]} Qf6 {[%clk 00:00:58]} {[%emt 00:00:11]} 21. g4 {[%clk 00:06:17]}
{[%emt 00:01:20]} Qf7 {[%clk 00:00:37]} {[%emt 00:00:24]} 22. Qxf7 {[%clk
00:05:15]} {[%emt 00:01:05]} Rxf7 {[%clk 00:00:40]} {[%emt 00:00:01]} 23. Bxc6
{[%clk 00:05:06]} {[%emt 00:00:12]} bxc6 {[%clk 00:00:42]} 24. Ne4 {[%clk
00:05:08]} Bd4 {[%clk 00:00:19]} {[%emt 00:00:26]} 25. Rxc6 {[%clk 00:05:10]}
{[%emt 00:00:02]} b5 {[%clk 00:00:20]} {[%emt 00:00:02]} 26. b3 {[%clk
00:04:48]} {[%emt 00:00:25]} b4 {[%clk 00:00:11]} {[%emt 00:00:13]} 27. a4
{[%clk 00:04:36]} {[%emt 00:00:14]} h5 {[%clk 00:00:09]} {[%emt 00:00:05]} 28.
h3 {[%clk 00:04:35]} {[%emt 00:00:04]} Kg8 {[%clk 00:00:07]} {[%emt 00:00:06]}
29. Rfc1 {[%clk 00:04:28]} {[%emt 00:00:10]} hxg4 {[%clk 00:00:08]} {[%emt
00:00:01]} 30. hxg4 {[%clk 00:04:30]} Rd7 {[%clk 00:00:10]} {[%emt 00:00:01]}
31. Kf1 {[%clk 00:04:20]} {[%emt 00:00:13]} Bb2 {[%clk 00:00:11]} {[%emt
00:00:03]} 32. R1c2 {[%clk 00:04:21]} {[%emt 00:00:02]} Bd4 {[%clk 00:00:12]}
{[%emt 00:00:02]} 33. Ke2 {[%clk 00:04:17]} {[%emt 00:00:07]} Rad8 {[%clk
00:00:14]} {[%emt 00:00:01]} 34. Rc8 {[%clk 00:04:11]} {[%emt 00:00:08]} Kf7
{[%clk 00:00:13]} {[%emt 00:00:04]} 35. Rxd8 {[%clk 00:04:11]} {[%emt
00:00:03]} Rxd8 {[%emt 00:00:01]} 36. Rc7+ {[%clk 00:04:12]} Kf8 {[%clk
00:00:15]} {[%emt 00:00:04]} 37. Ng5 {[%clk 00:04:12]} {[%emt 00:00:03]} Rb8
{[%clk 00:00:09]} {[%emt 00:00:10]} 38. Ne6+ {[%clk 00:04:13]} {[%emt
00:00:02]} 1-0

[ePGN "0.1;DGT LiveChess/2.2.5"]

[Event "Rapide Futuroscope"]
[Site "Futuroscope, France"]
[Date "2019.12.01"]
[Round "5.3"]
[White "Saada, Julien"]
[Black "Pottier, Simeon"]
[Result "1-0"]
[TimeControl "15' + 3''"]
[WhiteElo "2256"]
[BlackElo "2205"]

1. d4 {[%clk 00:15:02]} {[%emt 00:00:03]} Nf6 {[%clk 00:15:05]} 2. Bg5 {[%clk
00:15:00]} {[%emt 00:00:06]} c5 {[%clk 00:15:07]} 3. d5 {[%clk 00:15:01]}
{[%emt 00:00:02]} Ne4 {[%clk 00:15:08]} {[%emt 00:00:02]} 4. Bf4 {[%clk
00:15:03]} {[%emt 00:00:02]} Qb6 {[%clk 00:15:09]} 5. Bc1 {[%clk 00:15:04]}
{[%emt 00:00:02]} e6 {[%clk 00:15:05]} {[%emt 00:00:07]} 6. f3 {[%clk
00:15:05]} {[%emt 00:00:03]} Nf6 {[%clk 00:15:07]} 7. e4 {[%clk 00:14:58]}
{[%emt 00:00:10]} exd5 {[%clk 00:14:10]} {[%emt 00:01:01]} 8. exd5 {[%clk
00:14:59]} {[%emt 00:00:02]} Be7 {[%clk 00:13:27]} {[%emt 00:00:46]} 9. c4
{[%clk 00:14:52]} {[%emt 00:00:10]} O-O {[%clk 00:13:13]} {[%emt 00:00:18]} 10.
Bd3 {[%clk 00:14:53]} {[%emt 00:00:01]} d6 {[%clk 00:12:50]} {[%emt 00:00:27]}
11. Ne2 {[%clk 00:14:34]} {[%emt 00:00:22]} Nbd7 {[%clk 00:12:25]} {[%emt
00:00:28]} 12. Nbc3 {[%clk 00:14:28]} {[%emt 00:00:08]} Ne5 {[%clk 00:12:12]}
{[%emt 00:00:17]} 13. O-O {[%clk 00:14:22]} {[%emt 00:00:08]} Re8 {[%clk
00:11:50]} {[%emt 00:00:26]} 14. b3 {[%clk 00:14:17]} {[%emt 00:00:08]} Bf8
{[%clk 00:11:22]} {[%emt 00:00:31]} 15. Bg5 {[%clk 00:13:45]} {[%emt 00:00:35]}
Ned7 {[%clk 00:09:59]} {[%emt 00:01:27]} 16. Qd2 {[%clk 00:13:14]} {[%emt
00:00:33]} g6 {[%clk 00:09:08]} {[%emt 00:00:55]} 17. Rae1 {[%clk 00:13:15]}
{[%emt 00:00:02]} Bg7 {[%clk 00:08:21]} {[%emt 00:00:50]} 18. Kh1 {[%clk
00:13:03]} {[%emt 00:00:15]} Ne5 {[%clk 00:06:41]} {[%emt 00:01:43]} 19. Bc2
{[%clk 00:12:42]} {[%emt 00:00:24]} Qc7 {[%clk 00:04:13]} {[%emt 00:02:32]} 20.
Ng3 {[%clk 00:12:37]} {[%emt 00:00:08]} Bd7 {[%clk 00:03:30]} {[%emt 00:00:47]}
21. h3 {[%clk 00:12:34]} {[%emt 00:00:05]} Nh5 {[%clk 00:00:36]} {[%emt
00:02:57]} 22. Nxh5 {[%clk 00:12:14]} {[%emt 00:00:23]} gxh5 {[%clk 00:00:38]}
{[%emt 00:00:01]} 23. Ne4 {[%clk 00:11:18]} {[%emt 00:00:58]} Kh8 {[%clk
00:00:25]} {[%emt 00:00:16]} 24. Nf6 {[%clk 00:10:38]} {[%emt 00:00:43]} h6
{[%clk 00:00:08]} {[%emt 00:00:21]} 25. Nxe8 {[%emt 00:00:24]} 1-0

[Event "Rapide Futuroscope"]
[Site "Futuroscope, France"]
[Date "2019.12.01"]
[Round "5.2"]
[White "Edouard, Romain"]
[Black "Salles, Louis"]
[Result "1-0"]
[TimeControl "15' + 3''"]
[WhiteElo "2635"]
[BlackElo "2206"]

1. d4 {[%clk 00:15:05]} Nf6 {[%clk 00:15:04]} {[%emt 00:00:02]} 2. c4 {[%clk
00:15:06]} {[%emt 00:00:02]} c6 {[%clk 00:15:06]} {[%emt 00:00:01]} 3. Nf3
{[%clk 00:15:03]} {[%emt 00:00:06]} d5 {[%clk 00:15:08]} {[%emt 00:00:03]} 4.
Nc3 {[%clk 00:15:05]} e6 {[%clk 00:14:56]} {[%emt 00:00:16]} 5. Bg5 {[%clk
00:15:04]} {[%emt 00:00:04]} h6 {[%clk 00:14:57]} {[%emt 00:00:01]} 6. Bxf6
{[%clk 00:15:02]} {[%emt 00:00:05]} Qxf6 {[%clk 00:14:58]} {[%emt 00:00:02]} 7.
e3 {[%clk 00:15:02]} {[%emt 00:00:02]} Nd7 {[%clk 00:14:58]} {[%emt 00:00:04]}
8. Bd3 {[%clk 00:15:03]} {[%emt 00:00:02]} dxc4 {[%clk 00:14:49]} {[%emt
00:00:13]} 9. Bxc4 {[%clk 00:15:04]} {[%emt 00:00:02]} g6 {[%clk 00:14:46]}
{[%emt 00:00:05]} 10. e4 {[%clk 00:14:39]} {[%emt 00:00:28]} Bg7 {[%clk
00:14:27]} {[%emt 00:00:22]} 11. e5 {[%clk 00:14:32]} {[%emt 00:00:11]} Qe7
{[%clk 00:14:29]} {[%emt 00:00:01]} 12. O-O {[%clk 00:14:32]} {[%emt 00:00:02]}
O-O {[%clk 00:14:29]} {[%emt 00:00:03]} 13. Re1 {[%clk 00:14:33]} {[%emt
00:00:02]} b6 {[%clk 00:14:04]} {[%emt 00:00:29]} 14. h4 {[%clk 00:13:58]}
{[%emt 00:00:38]} Bb7 {[%clk 00:13:40]} {[%emt 00:00:27]} 15. h5 {[%clk
00:13:43]} {[%emt 00:00:18]} g5 {[%clk 00:13:05]} {[%emt 00:00:37]} 16. Qe2
{[%clk 00:13:40]} {[%emt 00:00:06]} c5 {[%clk 00:12:21]} {[%emt 00:00:48]} 17.
d5 {[%clk 00:13:27]} {[%emt 00:00:16]} g4 {[%clk 00:12:01]} {[%emt 00:00:23]}
18. Nh2 {[%clk 00:13:27]} {[%emt 00:00:02]} Nxe5 {[%clk 00:10:36]} {[%emt
00:01:28]} 19. Nxg4 {[%clk 00:13:28]} {[%emt 00:00:02]} Nxc4 {[%clk 00:09:39]}
{[%emt 00:01:01]} 20. Qxc4 {[%clk 00:13:23]} {[%emt 00:00:07]} Qg5 {[%clk
00:08:38]} {[%emt 00:01:04]} 21. dxe6 {[%clk 00:13:08]} {[%emt 00:00:18]} Qxh5
{[%clk 00:08:30]} {[%emt 00:00:11]} 22. e7 {[%clk 00:11:32]} {[%emt 00:01:39]}
Rfe8 {[%clk 00:08:32]} 23. Rad1 {[%clk 00:11:13]} {[%emt 00:00:21]} Qg6 {[%clk
00:07:28]} {[%emt 00:01:06]} 24. Nd5 {[%clk 00:09:53]} {[%emt 00:01:24]} Rac8
{[%clk 00:04:24]} {[%emt 00:03:08]} 25. Qf4 {[%clk 00:09:25]} {[%emt 00:00:30]}
Bxd5 {[%clk 00:01:58]} {[%emt 00:02:29]} 26. Rxd5 {[%clk 00:09:27]} {[%emt
00:00:01]} h5 {[%clk 00:00:10]} {[%emt 00:01:51]} 27. Rg5 {[%clk 00:09:19]}
{[%emt 00:00:10]} Qc6 {[%clk 00:00:06]} {[%emt 00:00:08]} 28. Nf6+ {[%clk
00:09:13]} {[%emt 00:00:08]} 1-0